bitfinex-derivatives/quotes_SOLF0:USTF0_20250114
["timestamp","ask_amount","ask_price","bid_price","bid_amount"]
[1736865639698,13.18024256,190.12,190.03,3.2916]
[1736865640200,13.18024256,190.12,190.07,2.6314]
[1736865641801,13.18024256,190.12,190.03,3.2916]
[1736865642100,13.18024256,190.12,190.05,2.6317]
[1736865642298,10.3473,190.14,190.03,1.6659]
[1736865642299,13.18024256,190.09,190.03,1.6659]
[1736865643099,13.18024256,190.09,190.01,1.6898]
[1736865643298,13.18024256,190.09,190.03,2.6319]
[1736865644297,13.18024256,190.09,190.05,2.6317]
[1736865645002,13.18024256,190.09,190.03,2.6319]
[1736865645708,13.18024256,190.09,190.01,3.3595]
[1736865645909,13.18024256,190.09,190.02,2.21869666]
[1736865646109,6.06,190.11,190.01,3.3595]
[1736865646312,6.06,190.11,190.02,2.21881597]
[1736865646501,1.6809,190.16,190.08,2.6313]
[1736865646710,14.86114256,190.16,190.05,13.18024256]
[1736865646907,14.86114256,190.16,190.06,2.21652962]
[1736865647111,14.86114256,190.16,190.05,13.18024256]
[1736865647306,14.86114256,190.16,190.06,2.21674328]
[1736865647502,14.86114256,190.16,190.11,2.6309]
[1736865647708,14.86114256,190.16,190.05,13.18024256]
[1736865647920,14.86114256,190.16,190.06,2.21552598]
[1736865648116,14.86114256,190.16,190.07,2.21552598]
[1736865648410,14.86114256,190.16,190.05,13.18024256]
[1736865648607,14.86114256,190.16,190.06,2.214793]
[1736865648807,14.86114256,190.16,190.05,13.18024256]
[1736865649210,14.86114256,190.16,190.1,2.631]
[1736865649604,14.86114256,190.16,190.08,2.6312]
[1736865650515,20.90114256,190.16,190.09,2.6311]
[1736865650705,20.90114256,190.16,190.05,13.18024256]
[1736865651007,6.04,190.16,190.12,2.6307]
[1736865651216,14.74134256,190.19,190.12,2.6307]
[1736865651409,13.18024256,190.16,190.05,13.18024256]
[1736865651712,13.18024256,190.16,190.12,2.6307]
[1736865652411,13.18024256,190.16,190.05,13.18024256]
[1736865652612,13.18024256,190.16,190.1,2.631]
[1736865653214,1.5611,190.19,190.08,2.6313]
[1736865653215,13.18024256,190.13,190.08,2.6313]
[1736865653407,13.18024256,190.13,190.02,13.18024256]
[1736865653913,13.18024256,190.15,190.03,2.21264516]
[1736865654116,13.18024256,190.15,190.04,2.21264516]
[1736865654305,13.18024256,190.15,190.02,13.18024256]
[1736865654808,13.18024256,190.12,190.07,2.6315]
[1736865655714,13.18024256,190.12,190.08,2.6312]
[1736865656114,147.172172,190.26,190.08,13.18024256]
[1736865656312,13.18024256,190.22,190.09,4.908]
[1736865657118,1.80987414,190.21,190.09,4.908]
[1736865657313,14.9901167,190.21,190.09,4.908]
[1736865657520,14.08517817,190.21,190.09,4.908]
[1736865657720,0.90493561,190.2,190.12,2.6307]
[1736865657909,0.90493561,190.2,190.09,4.908]
[1736865658721,0.90493561,190.2,190.13,2.6306]
[1736865659918,19.20024256,190.21,190.13,2.6306]
[1736865660119,0.90492543,190.2,190.13,2.6306]
[1736865660319,13.18024256,190.15,190.11,2.6308]
[1736865660518,13.18024256,190.15,190.04,1.6906]
[1736865660708,13.18024256,190.15,190.04,3.3001]
[1736865660910,13.18024256,190.15,190.05,2.21288511]
[1736865661116,13.18024256,190.15,190.04,3.3001]
[1736865661420,13.18024256,190.19,190.06,13.18024256]
[1736865661621,13.18024256,190.19,190.07,1.6678]
[1736865662724,13.18024256,190.19,190.13,2.6305]
[1736865663025,13.18024256,190.16,190.07,1.6678]
[1736865663221,13.18024256,190.13,190.04,3.3001]
[1736865663523,6.02,190.21,190.06,13.18024256]
[1736865663723,13.18024256,190.18,190.06,13.18024256]
[1736865664314,13.18024256,190.18,190.07,2.21315398]
[1736865664620,13.18024256,190.15,190.04,3.3001]
[1736865664923,13.18024256,190.12,190.05,2.21355508]
[1736865665122,13.18024256,190.09,190.03,63.68789438]
[1736865665323,13.18024256,190.09,190.03,66.31979438]
[1736865666021,13.18024256,190.09,190.04,2.6318]
[1736865666925,13.18024256,190.06,190.0,2.6323]
[1736865667125,13.18024256,190.06,189.94,13.18024256]
[1736865667429,13.18024256,190.06,189.95,2.21689907]
[1736865667628,13.18024256,190.06,189.94,13.18024256]
[1736865667629,13.18024256,190.06,189.96,2.21689907]
[1736865667929,13.18024256,190.06,189.93,4.9789]
[1736865667930,13.18024256,190.03,189.97,2.21689907]
[1736865668230,13.18024256,190.0,189.91,13.18024256]
[1736865668523,13.18024256,190.0,189.92,2.2186251]
[1736865668727,13.18024256,189.97,189.93,2.2186251]
[1736865668924,13.18024256,189.97,189.87,4.9789]
[1736865669127,13.18024256,189.97,189.88,2.21829146]
[1736865669128,19.22024256,189.97,189.88,2.21829146]
[1736865669327,19.22024256,189.97,189.89,2.21829146]
[1736865669525,1.5346,189.96,189.9,2.21829146]
[1736865669719,1.5346,189.96,189.85,13.18024256]
[1736865669920,1.5346,189.96,189.86,2.21815608]
[1736865670130,1.5941,190.05,189.88,13.18024256]
[1736865670131,13.18024256,190.0,189.88,13.18024256]
[1736865670326,13.18024256,190.0,189.89,2.21739609]
[1736865670526,13.18024256,190.0,189.9,2.21739609]
[1736865670726,13.18024256,190.0,189.91,2.21739609]
[1736865670931,13.18024256,189.97,189.85,13.18024256]
[1736865671229,13.18024256,189.97,189.86,2.21740381]
[1736865671530,1.5769,189.99,189.88,13.18024256]
[1736865671732,13.18024256,189.97,189.88,13.18024256]
[1736865672032,13.18024256,189.97,189.89,2.21740381]
[1736865672231,13.18024256,189.97,189.85,13.18024256]
[1736865672430,13.18024256,189.97,189.89,2.6339]
[1736865672633,13.18024256,189.94,189.82,4.8805]
[1736865672934,13.18024256,189.94,189.83,2.21737392]
[1736865673134,13.18024256,189.94,189.84,2.21737392]
[1736865673336,1.5901,189.93,189.85,2.21737392]
[1736865673528,1.5901,189.93,189.88,2.634]
[1736865673730,1.5901,189.93,189.83,2.21685615]
[1736865673930,1.5901,189.93,189.84,2.21685615]
[1736865674129,1.5901,189.93,189.85,2.21685615]
[1736865674334,1.5901,189.93,189.88,2.634]
[1736865674832,1.5901,189.93,189.84,2.21629023]
[1736865675032,7.6301,189.93,189.86,2.6343]
[1736865675530,7.6301,189.93,189.89,2.6339]
[1736865675732,7.6301,189.93,189.84,13.18024256]
[1736865675936,1.5742,189.96,189.87,13.18024256]
[1736865676333,1.5742,189.96,189.92,2.6335]
[1736865677034,6.04,189.97,189.87,13.18024256]
[1736865677234,19.24024256,190.03,189.9,13.18024256]
[1736865677429,13.18024256,190.03,189.93,13.18024256]
[1736865677637,13.18024256,190.03,189.95,2.633]
[1736865677935,13.18024256,190.03,189.93,13.18024256]
[1736865678137,13.18024256,190.03,189.83,6.06]
[1736865678138,13.18024256,190.03,189.95,2.6331]
[1736865678340,13.18024256,190.0,189.9,13.18024256]
[1736865678536,13.18024256,190.0,189.83,6.06]
[1736865678537,13.18024256,190.0,189.87,13.18024256]
[1736865679439,21.08972211,190.0,189.85,21.08972211]
[1736865679938,21.08972211,190.0,189.85,23.29992532]
[1736865680145,0.90580374,190.02,189.86,2.21020321]
[1736865680346,0.90580374,190.02,189.88,21.08972211]
[1736865680845,0.90580374,190.02,189.96,2.633]
[1736865681439,0.90580374,190.02,189.83,6.06]
[1736865681440,0.90580374,190.02,189.91,21.08972211]
[1736865681646,0.90580374,190.02,189.94,21.08972211]
[1736865681840,0.90580374,190.02,189.97,21.08972211]
[1736865682147,6.04,190.13,189.97,21.08972211]
[1736865682649,6.04,190.13,190.0,21.08972211]
[1736865683147,6.04,190.13,190.03,2.6319]
[1736865683344,6.04,190.13,190.0,21.08972211]
[1736865683545,6.04,190.13,190.01,1.6222]
[1736865683946,6.04,190.13,190.01,3.82670696]
[1736865684149,6.04,190.13,190.01,1.6222]
[1736865684544,1.6273,190.14,190.01,1.6222]
[1736865684742,6.04,190.13,190.01,1.6222]
[1736865685143,21.08972211,190.12,190.01,1.6222]
[1736865685551,21.08972211,190.12,189.97,21.08972211]
[1736865686549,21.08972211,190.12,190.03,2.632]
[1736865687050,21.08972211,190.06,189.98,2.6327]
[1736865687243,6.04,190.05,189.94,1.5923]
[1736865687443,7.6051,190.05,189.94,1.5923]
[1736865687952,21.08972211,190.03,189.94,1.5923]
[1736865688140,21.08972211,190.03,189.91,1.5808]
[1736865688453,21.08972211,190.03,189.96,2.6329]
[1736865689753,21.08972211,190.03,189.97,2.6328]
[1736865690444,21.08972211,190.03,189.98,2.6326]
[1736865690645,21.08972211,190.03,189.88,3.77262844]
[1736865690948,21.08972211,190.0,189.88,1.5673]
[1736865691143,21.08972211,190.0,189.95,2.6331]
[1736865691447,21.08972211,190.0,189.88,1.5673]
[1736865691648,21.08972211,189.97,189.9,2.6337]
[1736865691843,27.12972211,189.97,189.88,1.5673]
[1736865692244,27.12972211,189.97,189.91,2.6336]
[1736865692446,27.12972211,189.97,189.88,1.5673]
[1736865693146,27.12972211,189.97,189.92,2.6335]
[1736865693353,27.12972211,189.97,189.86,1.5689]
[1736865693649,3.2669,189.96,189.86,1.5689]
[1736865694141,3.2669,189.96,189.9,2.6338]
[1736865694346,21.08972211,189.94,189.82,3.79333031]
[1736865694745,21.08972211,189.94,189.82,1.5877]
[1736865695143,21.08972211,189.91,189.85,2.6344]
[1736865695650,4.8221,189.96,189.81,4.40383763]
[1736865695651,21.08972211,189.88,189.81,4.40383763]
[1736865695846,4.8221,189.96,189.81,2.19690895]
[1736865695847,21.08972211,189.85,189.81,2.19690895]
[1736865698548,21.08972211,189.82,189.73,3.79462868]
[1736865698749,21.08972211,189.82,189.73,1.5877]
[1736865698949,21.08972211,189.82,189.77,2.6356]
[1736865699351,21.08972211,189.82,189.79,2.6353]
[1736865699554,21.08972211,189.85,189.73,1.5877]
[1736865700656,21.08972211,189.85,189.82,2.6349]
[1736865700957,3.2669,189.87,189.75,21.08972211]
[1736865701358,3.2669,189.87,189.84,2.6346]
[1736865703760,3.2669,189.87,189.73,1.5877]
[1736865704752,21.08972211,189.85,189.73,1.5877]
[1736865705153,21.08972211,189.82,189.75,2.6358]
[1736865705354,6.02,189.81,189.66,21.08972211]
[1736865705554,6.02,189.81,189.67,1.6872]
[1736865705555,21.08972211,189.79,189.67,1.6872]
[1736865707058,21.08972211,189.79,189.72,2.6363]
[1736865707359,21.08972211,189.79,189.67,1.6872]
[1736865707560,21.08972211,189.79,189.7,2.6365]
[1736865707761,21.08972211,189.79,189.67,1.6872]
[1736865708075,1.5966,189.78,189.67,1.6872]
[1736865708261,3.2488,189.78,189.67,1.6872]
[1736865708663,21.08972211,189.76,189.61,98.58]
[1736865708863,21.08972211,189.76,189.62,1.6645]
[1736865709461,3.2488,189.78,189.63,21.08972211]
[1736865709858,3.2488,189.78,189.74,2.636]
[1736865710262,3.2488,189.78,189.66,21.08972211]
[1736865710458,3.2488,189.78,189.75,2.6358]
[1736865711262,3.2488,189.78,189.73,2.6361]
[1736865711662,21.08972211,189.74,189.68,2.18720843]
[1736865711854,21.08972211,189.71,189.69,2.18720843]
[1736865712060,21.08972211,189.71,189.63,2.18720843]
[1736865712260,21.08972211,189.71,189.62,1.6645]
[1736865712456,27.08972211,189.71,189.65,2.6372]
[1736865712660,21.08972211,189.68,189.61,2.18906642]
[1736865712860,21.08972211,189.68,189.63,2.6375]
[1736865713765,21.08972211,189.68,189.61,2.6378]
[1736865714061,21.08972211,189.68,189.6,63.82226743]
[1736865714470,21.08972211,189.68,189.57,1.6863]
[1736865714666,21.08972211,189.68,189.58,2.18704519]
[1736865714868,21.08972211,189.68,189.57,1.6863]
[1736865715068,21.08972211,189.68,189.58,2.18718371]
[1736865715265,1.6745,189.69,189.58,2.18718371]
[1736865715965,1.6745,189.69,189.62,2.6376]
[1736865716360,1.6745,189.69,189.57,3.87348371]
[1736865716361,21.08972211,189.67,189.57,3.87348371]
[1736865716558,21.08972211,189.67,189.57,1.6863]
[1736865716765,21.08972211,189.64,189.58,2.6382]
[1736865716970,21.08972211,189.61,189.5,3.83897023]
[1736865717269,21.08972211,189.61,189.54,2.6387]
[1736865718068,1.6509,189.6,189.54,2.6387]
[1736865718267,1.6509,189.6,189.52,2.6391]
[1736865718665,21.08972211,189.58,189.52,2.6391]
[1736865718870,21.08972211,189.58,189.5,1.6525]
[1736865719175,21.08972211,189.58,189.53,2.6389]
[1736865720168,21.08972211,189.58,189.55,2.6387]
[1736865720369,21.08972211,189.58,189.5,1.6525]
[1736865720668,1.6509,189.6,189.5,1.6525]
[1736865722369,1.6509,189.6,189.42,5.2809]
[1736865722565,191.0,189.59,189.43,1.5991]
[1736865723068,191.0,189.59,189.52,2.639]
[1736865723268,191.0,189.59,189.43,1.5991]
[1736865723665,191.0,189.59,189.53,2.639]
[1736865724271,191.0,189.59,189.54,2.6387]
[1736865724973,21.08972211,189.56,189.49,2.6395]
[1736865725172,6.0,189.55,189.49,2.6395]
[1736865725477,21.08972211,189.53,189.43,1.5991]
[1736865726372,21.08972211,189.53,189.46,66.51321731]
[1736865727278,21.08972211,189.53,189.48,2.6396]
[1736865727468,21.08972211,189.53,189.46,63.87331731]
[1736865727873,23.72882211,189.53,189.46,63.87331731]
[1736865728372,21.08972211,189.5,189.45,2.64]
[1736865729670,21.08972211,189.5,189.46,2.6398]
[1736865730574,21.08972211,189.5,189.44,2.6401]
[1736865733076,21.08972211,189.47,189.42,2.6404]
[1736865733968,27.08972211,189.47,189.4,2.6407]
[1736865734582,27.08972211,189.47,189.37,1.655]
[1736865734583,27.08972211,189.47,189.42,2.6404]
[1736865735678,6.0,189.47,189.43,2.6402]
[1736865735879,6.0,189.47,189.37,1.655]
[1736865735880,6.0,189.47,189.37,22.74472211]
[1736865736072,6.0,189.47,189.38,2.17250353]
[1736865736874,27.08972211,189.47,189.37,1.655]
[1736865737179,27.08972211,189.47,189.41,2.6405]
[1736865737382,27.08972211,189.47,189.37,3.82750353]
[1736865737569,6.0,189.47,189.43,2.6403]
[1736865738375,6.0,189.47,189.41,2.6405]
[1736865738580,6.0,189.47,189.37,3.82750353]
[1736865738581,27.08972211,189.47,189.37,3.82750353]
[1736865738783,27.08972211,189.47,189.37,1.655]
[1736865739583,27.08972211,189.47,189.37,3.82750353]
[1736865740083,27.08972211,189.47,189.39,2.6408]
[1736865741477,27.08972211,189.47,189.37,1.655]
[1736865741682,27.08972211,189.47,189.4,2.6407]
[1736865744478,27.08972211,189.47,189.37,1.655]
[1736865744675,27.08972211,189.47,189.42,2.6405]
[1736865745172,27.08972211,189.47,189.4,2.6407]
[1736865746286,27.08972211,189.47,189.37,1.655]
[1736865747686,13.25383033,189.44,189.37,1.655]
[1736865748187,13.25383033,189.44,189.41,2.6405]
[1736865748683,13.25383033,189.44,189.37,1.655]
[1736865750083,13.25383033,189.44,189.39,2.6408]
[1736865750689,13.25383033,189.41,189.37,4.2961]
[1736865751786,13.25383033,189.41,189.37,1.655]
[1736865751986,13.25383033,189.44,189.38,2.641]
[1736865752187,13.25383033,189.44,189.37,1.655]
[1736865752687,13.25383033,189.44,189.38,2.19932515]
[1736865752888,13.25383033,189.44,189.37,1.655]
[1736865753085,13.25383033,189.44,189.39,2.6408]
[1736865753289,13.25383033,189.44,189.38,2.19932043]
[1736865753290,13.25383033,189.44,189.37,1.655]
[1736865753484,13.25383033,189.44,189.31,1.5446]
[1736865753788,13.25383033,189.4,189.35,2.6414]
[1736865753991,13.25383033,189.4,189.32,1.5418]
[1736865754190,13.25383033,189.4,189.33,2.20054658]
[1736865754390,13.25383033,189.4,189.34,2.20054658]
[1736865754591,13.25383033,189.4,189.35,2.20054658]
[1736865754789,13.25383033,189.4,189.36,2.20054658]
[1736865754990,13.25383033,189.4,189.32,1.5418]
[1736865755189,13.25383033,189.4,189.36,2.6412]
[1736865755391,13.25383033,189.44,189.32,1.5418]
[1736865755590,13.25383033,189.44,189.33,15.45867918]
[1736865755788,19.25383033,189.47,189.4,2.6407]
[1736865757387,19.25383033,189.47,189.41,2.21018936]
[1736865757586,19.25383033,189.47,189.4,2.6407]
[1736865757786,13.25383033,189.44,189.41,2.21053019]
[1736865757986,13.25383033,189.44,189.4,2.6407]
[1736865758189,13.25383033,189.44,189.38,2.641]
[1736865758388,13.25383033,189.44,189.39,2.21211579]
[1736865758593,13.25383033,189.44,189.38,2.641]
[1736865758890,13.25383033,189.44,189.39,2.21496233]
[1736865759090,13.25383033,189.44,189.38,2.641]
[1736865759091,13.25383033,189.41,189.36,2.6413]
[1736865759293,13.25383033,189.41,189.37,2.21557158]
[1736865759492,13.25383033,189.41,189.38,2.21557158]
[1736865759697,13.25383033,189.41,189.39,2.21557158]
[1736865759993,13.25383033,189.41,189.36,2.6413]
[1736865760190,13.25383033,189.41,189.37,2.21820787]
[1736865760493,13.25383033,189.45,189.38,2.21820787]
[1736865760695,13.25383033,189.41,189.39,2.21820787]
[1736865760885,13.25383033,189.41,189.4,2.21820787]
[1736865761090,13.25383033,189.41,189.39,2.6408]
[1736865761288,13.25383033,189.41,189.4,2.22106246]
[1736865762697,13.25383033,189.41,189.35,2.6414]
[1736865762891,13.25383033,189.38,189.35,2.6414]
[1736865763290,13.25383033,189.41,189.32,1.5418]
[1736865765000,191.0,189.51,189.34,13.25383033]
[1736865765295,13.25383033,189.45,189.34,13.25383033]
[1736865765498,13.25383033,189.45,189.32,1.5418]
[1736865765695,13.25383033,189.45,189.33,11.77909731]
[1736865765893,13.25383033,189.45,189.38,2.641]
[1736865766096,13.25383033,189.45,189.33,11.77909731]
[1736865766596,13.25383033,189.45,189.41,2.6405]
[1736865767800,13.25383033,189.45,189.37,2.6412]
[1736865768003,13.25383033,189.45,189.34,13.25383033]
[1736865768594,13.25383033,189.45,189.38,2.6409]
[1736865769698,13.25383033,189.45,189.32,1.5418]
[1736865769900,13.25383033,189.45,189.39,2.6408]
[1736865770996,13.25383033,189.42,189.32,1.5418]
[1736865771201,13.25383033,189.38,189.32,1.5418]
[1736865772198,13.25383033,189.38,189.33,2.6416]
[1736865773004,13.25383033,189.38,189.32,1.5418]
[1736865773303,6.0,189.41,189.32,1.5418]
[1736865773805,192.6731,189.44,189.32,1.5418]
[1736865774304,192.6731,189.44,189.39,2.6408]
[1736865774504,191.0,189.44,189.39,2.6408]
[1736865774704,191.0,189.44,189.4,2.21938515]
[1736865774901,191.0,189.44,189.39,2.6408]
[1736865775102,191.0,189.44,189.4,2.21935966]
[1736865775303,19.25383033,189.45,189.4,2.6407]
[1736865776607,13.25383033,189.42,189.32,1.5418]
[1736865776908,13.25383033,189.42,189.33,2.21946754]
[1736865777107,19.25383033,189.45,189.34,2.21946754]
[1736865777108,13.25383033,189.39,189.34,2.21946754]
[1736865777308,13.25383033,189.39,189.35,2.21946754]
[1736865777507,13.25383033,189.39,189.32,1.5418]
[1736865777704,13.25383033,189.39,189.33,2.2203166]
[1736865778104,13.25383033,189.39,189.34,4.86176052]
[1736865778408,1.6352,189.42,189.32,1.5418]
[1736865778409,4.2758,189.42,189.32,1.5418]
[1736865778609,13.25383033,189.38,189.33,2.21914589]
[1736865778906,13.25383033,189.38,189.29,1.6818]
[1736865779106,13.25383033,189.38,189.3,2.21825156]
[1736865779309,13.25383033,189.38,189.32,2.6418]
[1736865780605,147.172172,189.48,189.32,13.25383033]
[1736865780804,13.25383033,189.47,189.35,13.25383033]
[1736865781007,13.25383033,189.44,189.36,2.21515693]
[1736865781203,13.25383033,189.44,189.37,2.21515693]
[1736865781402,13.25383033,189.44,189.32,13.25383033]
[1736865781403,13.25383033,189.44,189.38,2.21515693]
[1736865781608,13.25383033,189.44,189.32,13.25383033]
[1736865781609,13.25383033,189.44,189.29,1.6818]
[1736865781911,13.25383033,189.41,189.35,2.6413]
[1736865782107,13.25383033,189.41,189.36,2.21590203]
[1736865782308,13.25383033,189.41,189.37,2.21590203]
[1736865782509,13.25383033,189.41,189.29,14.93563033]
[1736865782711,13.25383033,189.41,189.3,2.21636394]
[1736865782913,13.25383033,189.41,189.31,2.21636394]
[1736865783109,13.25383033,189.44,189.32,15.47019427]
[1736865783415,13.25383033,189.47,189.41,2.6406]
[1736865783712,13.25383033,189.47,189.42,2.21533489]
[1736865783911,191.0,189.48,189.38,13.25383033]
[1736865784219,1.5989,189.52,189.39,2.21508685]
[1736865784515,6.0,189.53,189.41,13.25383033]
[1736865784709,13.25383033,189.54,189.42,2.21459789]
[1736865784907,13.25383033,189.54,189.5,2.6393]
[1736865785110,13.25383033,189.54,189.39,1.6319]
[1736865785111,13.25383033,189.54,189.44,13.25383033]
[1736865785303,1.5654,189.55,189.45,3.83541572]
[1736865785504,1.5654,189.55,189.46,2.21391572]
[1736865785709,1.5654,189.55,189.47,2.21391572]
[1736865786015,1.5654,189.55,189.48,2.21218749]
[1736865786216,1.5654,189.55,189.49,2.21218749]
[1736865786508,13.25383033,189.57,189.5,2.20931077]
[1736865786709,13.25383033,189.57,189.45,3.1953]
[1736865786710,13.25383033,189.6,189.51,2.20925694]
[1736865786909,13.25383033,189.6,189.52,2.20925694]
[1736865787112,13.25383033,189.6,189.48,1.6319]
[1736865787310,13.25383033,189.57,189.49,2.20858079]
[1736865787514,13.25383033,189.57,189.5,2.20858079]
[1736865787815,13.25383033,189.57,189.48,1.6319]
[1736865788011,13.25383033,189.6,189.49,2.20688825]
[1736865788217,13.25383033,189.6,189.5,2.20688825]
[1736865788514,211.81923033,189.61,189.51,2.20688825]
[1736865788711,211.81923033,189.61,189.48,1.6319]
[1736865789015,13.25383033,189.58,189.51,2.6392]
[1736865789216,13.25383033,189.56,189.47,13.25383033]
[1736865789406,13.25383033,189.56,189.48,2.20325289]
[1736865789610,13.25383033,189.56,189.45,3.1953]
[1736865789811,15.89243033,189.56,189.47,2.6397]
[1736865790017,13.25383033,189.53,189.47,2.6397]
[1736865791316,21.19044014,189.54,189.47,2.6397]
[1736865792118,21.19044014,189.54,189.45,1.6215]
[1736865792416,21.19044014,189.54,189.45,4.2615]
[1736865792417,6.0,189.53,189.45,4.2615]
[1736865792612,6.0,189.53,189.45,2.64]
[1736865792613,21.19044014,189.51,189.45,2.64]
[1736865792814,21.19044014,189.51,189.44,2.6401]
[1736865793517,1.6438,189.52,189.4,1.6269]
[1736865793713,1.6438,189.52,189.41,2.20245557]
[1736865794017,1.6438,189.52,189.42,2.20245557]
[1736865794317,1.6438,189.52,189.44,2.6401]
[1736865795017,21.19044014,189.51,189.44,2.6401]
[1736865795524,1.6438,189.52,189.41,2.20279285]
[1736865795816,1.6438,189.52,189.42,2.20262753]
[1736865796007,1.6438,189.52,189.43,2.20262753]
[1736865796213,1.6438,189.52,189.39,22.80344014]
[1736865796519,1.6438,189.52,189.4,2.20303953]
[1736865796720,1.6438,189.52,189.41,2.20364309]
[1736865796916,1.6438,189.52,189.42,2.20364309]
[1736865797116,1.6438,189.52,189.45,2.64]
[1736865798015,21.19044014,189.51,189.43,2.6403]
[1736865798216,21.19044014,189.48,189.4,2.20565451]
[1736865798417,21.19044014,189.48,189.37,1.5435]
[1736865798618,212.19044014,189.48,189.39,2.6408]
[1736865799521,21.19044014,189.45,189.39,2.6408]
[1736865800415,27.19044014,189.45,189.34,3.2169]
[1736865800630,21.19044014,189.42,189.37,2.6411]
[1736865801219,21.19044014,189.42,189.35,2.6414]
[1736865801420,21.19044014,189.42,189.36,2.20889619]
[1736865801623,21.19044014,189.42,189.35,2.6414]
[1736865802119,21.19044014,189.42,189.36,2.6412]
[1736865802320,21.19044014,189.42,189.33,63.91771425]
[1736865803018,21.19044014,189.42,189.33,2.6416]
[1736865803219,21.19044014,189.39,189.33,2.6416]
[1736865804815,21.19044014,189.39,189.3,2.20966777]
[1736865805021,21.19044014,189.39,189.28,1.563]
[1736865805022,21.19044014,189.39,189.31,2.6419]
[1736865805221,21.19044014,189.39,189.27,1.6165]
[1736865805418,21.19044014,189.36,189.27,1.6165]
[1736865805623,21.19044014,189.36,189.23,2.21041984]
[1736865805624,27.19044014,189.36,189.23,2.21041984]
[1736865805819,27.19044014,189.36,189.24,2.21041984]
[1736865805820,1.689,189.35,189.24,2.21041984]
[1736865806016,4.3305,189.35,189.23,2.6431]
[1736865806217,21.19044014,189.33,189.19,4.8501]
[1736865806525,21.19044014,189.3,189.24,2.21007787]
[1736865806720,2.6425,189.28,189.24,2.21007787]
[1736865806926,27.19044014,189.27,189.24,2.21007787]
[1736865807228,27.19044014,189.27,189.13,3.1089]
[1736865807430,21.19044014,189.24,189.17,2.644]
[1736865808033,2.6434,189.22,189.13,2.6445]
[1736865808226,21.19044014,189.21,189.07,7.18105003]
[1736865808425,21.19044014,189.18,189.07,7.18105003]
[1736865808625,6.0,189.17,189.07,7.18105003]
[1736865808828,21.19044014,189.15,189.05,1.5898]
[1736865809425,21.19044014,189.15,189.06,2.6455]
[1736865810028,21.19044014,189.15,189.07,2.6453]
[1736865810532,21.19044014,189.15,189.05,1.5898]
[1736865811241,21.19044014,189.15,189.1,2.645]
[1736865811832,1.6266,189.16,189.1,2.645]
[1736865812938,1.6266,189.16,189.05,1.5898]
[1736865813635,21.19044014,189.18,189.05,1.5898]
[1736865814037,6.02,189.19,189.15,2.6442]
[1736865814238,21.19044014,189.21,189.06,21.19044014]
[1736865814541,191.0,189.22,189.09,21.19044014]
[1736865814841,191.0,189.22,189.18,2.6438]
[1736865815143,6.02,189.23,189.09,21.19044014]
[1736865815443,8.6632,189.23,189.14,2.6444]
[1736865815632,8.6632,189.23,189.05,1.5898]
[1736865815633,21.19044014,189.21,189.05,1.5898]
[1736865815837,21.19044014,189.18,189.05,1.5898]
[1736865816037,21.19044014,189.18,189.08,2.6451]
[1736865816238,21.19044014,189.15,189.05,1.5898]
[1736865816434,6.02,189.14,189.05,1.5898]
[1736865816635,21.19044014,189.12,188.98,3.2902]
[1736865816940,21.19044014,189.12,188.98,4.8291]
[1736865817344,21.19044014,189.12,189.06,2.6455]
[1736865818941,21.19044014,189.12,188.98,4.8291]
[1736865819244,21.19044014,189.12,189.05,2.6456]
[1736865820144,21.19044014,189.12,189.07,2.6453]
[1736865820646,21.19044014,189.12,188.98,4.8291]
[1736865821440,21.19044014,189.12,189.02,2.6461]
[1736865821747,21.19044014,189.12,188.98,4.8291]
[1736865822141,21.19044014,189.12,189.02,2.6461]
[1736865822343,21.19044014,189.12,188.98,4.8291]
[1736865822843,27.21044014,189.12,188.98,4.8291]
[1736865823045,27.21044014,189.12,189.02,2.6461]
[1736865823239,27.21044014,189.12,188.98,4.8291]
[1736865823847,27.21044014,189.12,189.06,2.6455]
[1736865824752,27.21044014,189.12,188.98,4.8291]
[1736865825445,29.85524014,189.12,188.98,4.8291]
[1736865826248,21.19044014,189.09,188.98,4.8291]
[1736865826550,21.19044014,189.06,188.93,99.88579719]
[1736865826751,1.6238,189.05,188.93,99.88579719]
[1736865826950,6.02,189.04,188.93,99.88579719]
[1736865827543,6.02,189.04,188.92,21.19044014]
[1736865827748,21.19044014,189.09,189.02,2.646]